[Event "40th BAN National Women Chess-ch 2021"]
[Site "Dhaka"]
[Date "2022.01.06"]
[Round "9.6"]
[White "Sultana, Sharmin Shirin"]
[Black "Jahanara, Haque"]
[Result "1-0"]
[ECO "D30"]
[WhiteElo "1975"]
[BlackElo "1710"]
[Annotator "ChessBase"]
[PlyCount "101"]
[EventDate "2021.12.29"]
[EventCountry "BAN"]
[SourceTitle "playchess.com"]
[Source "ChessBase"]
[SourceQuality "1"]
[TimeControl "40/5400+30:1800+30"]

1. d4 {[%emt 0:00:04]} e6 {[%emt 0:00:13]} 2. Nf3 {[%emt 0:00:07]} d5 {[%emt 0:00:21]} 3. c4 {[%emt 0:00:07]} a6 {[%emt 0:01:02]} 4. a4 {[%emt 0:01:20]} Nf6 {[%emt 0:02:35]} 5. Nc3 {[%emt 0:00:50]} Be7 {[%emt 0:01:33]} 6. e3 {[%emt 0:01:36]} Nbd7 {[%emt 0:02:39]} 7. Be2 {[%emt 0:05:26]} h6 {[%emt 0:02:14]} 8. O-O {[%emt 0:00:50]} O-O {[%emt 0:00:15]} 9. b3 {[%emt 0:05:44]} b6 {[%emt 0:02:49]} 10. Bb2 {[%emt 0:02:25]} Bb7 {[%emt 0:00:40]} 11. Bd3 {[%emt 0:05:05]} Re8 {[%emt 0:11:45]} 12. Qe2 {[%emt 0:06:00]} Bf8 {[%emt 0:07:59]} 13. Rfd1 {[%emt 0:01:08]} g6 {[%emt 0:03:42]} 14. Rac1 {[%emt 0:20:06]} Bg7 {[%emt 0:05:11]} 15. b4 {[%emt 0:03:41]} a5 {[%emt 0:08:17]} 16. b5 {[%emt 0:03:35]} Rc8 {[%emt 0:08:30]} 17. Ba3 {[%emt 0:03:48]} Bf8 {[%emt 0:00:25]} 18. Bxf8 {[%emt 0:01:30]} Kxf8 {[%emt 0:00:37]} 19. cxd5 {[%emt 0:05:57]} Nxd5 {[%emt 0:00:34]} 20. e4 {[%emt 0:01:19]} Nxc3 {[%emt 0:05:46]} 21. Rxc3 {[%emt 0:00:20]} Qf6 {[%emt 0:04:53]} 22. Qe3 {[%emt 0:08:30]} Kg7 {[%emt 0:05:06]} 23. e5 {[%emt 0:00:17]} Qe7 {[%emt 0:03:11]} 24. Rdc1 {[%emt 0:00:02]} Nb8 {[%emt 0:02:09]} 25. Be4 {[%emt 0:23:13]} Bd5 {[%emt 0:08:04]} 26. h3 {[%emt 0:06:24]} Red8 {[%emt 0:07:21]} 27. Qf4 {[%emt 0:02:31]} Rd7 {[%emt 0:00:24]} 28. Bxd5 {[%emt 0:01:19]} exd5 {[%emt 0:06:15]} 29. h4 {[%emt 0:01:36]} Qe6 {[%emt 0:00:44]} 30. Nh2 {[%emt 0:02:00]} f5 {[%emt 0:02:29]} 31. exf6+ {[%emt 0:08:01]} Qxf6 {[%emt 0:00:13]} 32. Qxf6+ {[%emt 0:02:13]} Kxf6 {[%emt 0:00:11]} 33. Ng4+ {[%emt 0:00:04]} Kg7 {[%emt 0:00:30]} 34. Ne5 {[%emt 0:00:03]} Re7 {[%emt 0:00:28]} 35. Rg3 {[%emt 0:00:10]} Re6 {[%emt 0:00:57]} 36. h5 {[%emt 0:01:12]} g5 {[%emt 0:00:22]} 37. f4 {[%emt 0:06:08]} c5 {[%emt 0:00:50]} 38. fxg5 {[%emt 0:06:33]} hxg5 {[%emt 0:01:50]} 39. Rxg5+ {[%emt 0:00:03]} Kh7 {[%emt 0:00:34]} 40. Rf1 {[%emt 0:00:00]} Rc7 {[%emt 0:00:00]} 41. Rf8 {[%emt 0:09:40]} Rb7 {[%emt 0:04:46]} 42. Nf7 {[%emt 0:01:27]} Rxf7 {[%emt 0:05:20]} 43. Rxf7+ {[%emt 0:02:14]} Kh6 {[%emt 0:01:20]} 44. Rg6+ {[%emt 0:03:28]} Rxg6 {[%emt 0:00:11]} 45. hxg6 {[%emt 0:00:02]} Kxg6 {[%emt 0:00:01]} 46. Rb7 {[%emt 0:00:13]} Kf5 {[%emt 0:23:53]} 47. Kf2 {[%emt 0:01:01]} Ke4 {[%emt 0:01:00]} 48. dxc5 {[%emt 0:00:09]} bxc5 {[%emt 0:00:13]} 49. Rxb8 {[%emt 0:00:44]} Kd3 {[%emt 0:01:42]} 50. Rc8 {[%emt 0:00:20]} c4 {[%emt 0:00:01]} 51. b6 {[%emt 0:00:14]} 1-0

[Event "40th BAN National Women Chess-ch 2021"]
[Site "Dhaka"]
[Date "2022.01.07"]
[Round "10.2"]
[White "Talukder, Umme Taslima Protiva"]
[Black "Khan, Nazrana"]
[Result "0-1"]
[ECO "D35"]
[WhiteElo "1706"]
[BlackElo "1848"]
[Annotator "NA RC"]
[PlyCount "168"]
[EventDate "2021.12.29"]
[EventCountry "BAN"]
[SourceTitle "playchess.com"]
[Source "ChessBase"]
[SourceQuality "1"]
[TimeControl "40/5400+30:1800+30"]

{[%evp 8,166,23,4,8,0,32767,32767,32767,32767,-18,-13,0,-20,98,-28,91,95,110,82,158,56,125,106,118,93,109,92,97,70,93,69,73,25,47,-238,105,107,117,120,132,92,90,104,107,52,101,80,147,94,102,85,97,86,137,121,162,41,161,25,17,16,16,0,0,-56,-25,-47,-31,-69,0,0,0,0,4,0,0,-7,-8,-8,-14,-18,0,0,0,0,0,0,0,0,0,0,0,0,0,0,0,0,0,0,0,0,8,0,0,0,0,0,0,0,0,0,16,8,9,8,8,8,43,8,4598,7830,4618,0,0,0,8,0,0,0,0,0,0,-5616,-29966,-29984,-29985,-29985,-29986,-29987,-27999,-29988,-27999,-29991,-29992,-27999,-29993,-27999,-29993,-29993,-5189,32767,32767,32767,32767,32767,32767,32767,32767,32767,-27999]} 1. d4 {[%emt 0:00:06]} d5 {[%emt 0:00:05]} 2. c4 {[%emt 0:00:03]} e6 {[%emt 0:00:13]} 3. Nc3 {[%emt 0:00:07]} Nf6 {[%emt 0:00:09]} 4. Nf3 {[%emt 0:00:06]} Be7 {[%emt 0:00:20]} 5. e3 {[%emt 0:00:32]} O-O {[%emt 0:00:24]} 6. cxd5 {[%emt 0:00:29]} exd5 {[%emt 1:32:19]} 7. Bd3 {[%emt 1:32:37]} Nbd7 {[%emt 0:00:30]} 8. Ne5 {[%emt 0:00:00]} Nxe5 {[%emt 0:00:00]} 9. dxe5 {[%emt 0:00:00]} Ng4 {[%emt 0:00:00]} 10. Nxd5 {[%emt 0:00:00]} c6 {[%emt 0:01:30]} (10... Nxe5 $11 11. O-O Nxd3 12. Nxe7+ Qxe7 13. Qxd3 Rd8) 11. Nc3 {[%emt 0:02:00]} (11. Nxe7+ $16 Qxe7 12. f4) 11... Kh8 {[%emt 0:00:00]} (11... Nxe5 $11 12. Bxh7+ Kxh7 13. Qh5+ Kg8 14. Qxe5 Bf6) 12. f4 {[%emt 0:00:00]} Bc5 {[%emt 0:00:00]} 13. Qe2 {[%emt 0:00:00]} Qb6 {[%emt 0:00:00] [#]} (13... f6 $142) 14. Nd1 {[%emt 0:00:00]} (14. h3 $1 $16 {[%cal Rh3g4]} Nxe3 15. Bd2) 14... f6 {[%emt 0:00:00]} (14... Nh6 $1 $14) 15. h3 {[%emt 0:00:00]} Nh6 {[%emt 0:00:00] [#]} 16. exf6 $1 {[%emt 0:00:00]} Rxf6 {[%emt 0:00:00]} 17. O-O {[%emt 0:00:00]} Bf5 {[%emt 0:00:00]} 18. Kh2 {[%emt 0:00:00]} Bxd3 {[%emt 0:00:00]} 19. Qxd3 {[%emt 0:00:00]} Rd8 {[%emt 0:00:00] [#]} 20. Qc2 {[%emt 0:00:00]} ({White should try} 20. Qe2 $1 $16) 20... Nf5 $1 {[%emt 0:00:00]} 21. e4 $2 {[%emt 0:00:00] [#]} (21. Bd2 $11 {and White stays safe.}) 21... Nd4 $2 {[%emt 0:00:00]} ({Black should play} 21... Qb5 $1 $19 {[%cal Rb5f1]} 22. Rh1 (22. Rf2 Bxf2) 22... Nd4) 22. Qc4 {[%emt 0:00:00]} Qb5 {[%emt 0:00:00]} 23. Qxb5 {[%emt 0:00:00]} Nxb5 {[%emt 0:00:00]} 24. e5 {[%emt 0:00:00]} ({White should try} 24. Be3 Bd4 25. a4) 24... Rff8 {[%emt 0:00:00]} 25. g3 {[%emt 0:00:00]} Kg8 {[%emt 0:00:00]} 26. a4 {[%emt 0:00:00]} ({White should play} 26. Nf2 $16) 26... Nc7 {[%emt 0:00:00]} ({Black should play} 26... Nd4 $1 $14) 27. Nc3 {[%emt 0:00:00]} a5 {[%emt 0:08:30] [#]} (27... Rd3 $142) 28. Ne4 {[%emt 0:00:00]} ({White should play} 28. Kg2 $1) 28... Bb4 {[%emt 0:00:00]} 29. Be3 {[%emt 0:00:00]} Rd3 {[%emt 0:00:00]} 30. Bf2 {[%emt 0:00:00]} Ne6 {[%emt 0:01:30]} 31. Bb6 {[%emt 0:00:00]} c5 {[%emt 0:00:30]} 32. Rf2 {[%emt 0:00:00]} (32. Rac1 $16) 32... Rc8 {[%emt 0:00:00]} (32... Re3 $14 33. Nd6 Rxe5) 33. Nd6 {[%emt 0:11:00]} (33. f5 $16 Nd4 34. e6) 33... Rc6 {[%emt 0:00:00]} 34. Ba7 {[%emt 0:00:00]} Ra6 {[%emt 0:00:00]} 35. Nb5 {[%emt 0:01:00]} Nd4 {[%emt 0:00:00]} (35... Rd8 $1 $15 {feels stronger.}) 36. Nxd4 {[%emt 0:00:00]} (36. Bb8 $11) 36... cxd4 {[%emt 0:00:00]} 37. Bb8 {[%emt 0:00:00]} Rc6 {[%emt 0:00:00]} 38. Kg2 {[%emt 0:00:00]} (38. f5 $11) 38... b6 {[%emt 0:00:00]} (38... Re3 $1 $15) 39. f5 {[%emt 0:00:00]} Rc8 {[%emt 0:04:00]} 40. Bd6 {[%emt 0:00:00]} Bxd6 {[%emt 0:00:00]} 41. exd6 {[%emt 0:00:00]} Rd8 {[%emt 0:00:00]} 42. d7 {[%emt 0:00:00]} Rxd7 {[%emt 0:00:00]} 43. Rc1 {[%emt 0:00:00]} Rb3 {[%emt 0:00:00]} 44. Rc4 {[%emt 0:34:30]} d3 {[%emt 0:02:42]} 45. Rd2 {[%emt 0:00:00]} Rd5 {[%emt 0:30:18]} 46. g4 {[%emt 0:00:00]} Kf7 {[%emt 0:00:00]} 47. Kf3 {[%emt 0:00:00]} Rc5 {[%emt 0:00:00]} 48. Rd4 {[%emt 0:00:00]} Rc2 {[%emt 0:00:00]} 49. R4xd3 {[%emt 0:00:00]} Rxd3+ {[%emt 0:00:00]} 50. Rxd3 {[%emt 0:00:00]} Rxb2 {[%emt 0:00:00]} 51. Ke4 {[%emt 0:00:00]} Ke7 {[%emt 0:00:00]} 52. Ke5 {[%emt 0:00:00]} Rb4 {[%emt 0:00:00]} 53. Rd4 {[%emt 0:00:00]} Rb3 {[%emt 0:00:00]} 54. h4 {[%emt 0:00:00]} h6 {[%emt 0:00:00]} 55. Kd5 {[%emt 0:00:00]} Rh3 {[%emt 0:00:00]} 56. Kc6 {[%emt 0:00:00]} Rxh4 {[%emt 0:00:00]} 57. Rd7+ {[%emt 0:00:00]} Kf8 {[%emt 0:00:00]} 58. Kxb6 {[%emt 0:00:00]} Rxg4 {[%emt 0:00:00]} 59. Kxa5 {[%emt 0:00:00]} Rg5 {[%emt 0:00:00] [#]} 60. Rd5 {[%emt 0:00:00]} ({Better is} 60. Kb6 $1 $16) 60... g6 {[%emt 0:00:08]} 61. Kb6 {[%emt 0:00:00]} gxf5 {[%emt 0:01:20]} 62. a5 {[%emt 0:00:00]} Rg6+ {[%emt 0:01:29]} (62... Ke7 $11) 63. Kb7 {[%emt 0:00:00]} (63. Kc7 $1 $14) 63... Rf6 $2 {[%emt 0:00:42]} (63... Rg7+ 64. Kc6 f4) 64. a6 {[%emt 0:00:00]} Kg7 {[%emt 0:00:52]} 65. Rd7+ $2 {[%emt 0:00:00]} (65. Rc5 {mates} Rxa6 66. Kxa6 Kg6 67. Kb5 Kh5 68. Kc4 Kg5 69. Kd4 h5 70. Ke3) 65... Kg6 {[%emt 0:00:47]} 66. a7 {[%emt 0:00:00]} Rf8 {[%emt 0:00:16]} 67. Rd6+ {[%emt 0:02:55]} Kg5 {[%emt 0:00:35]} 68. Rd7 {[%emt 0:01:11]} f4 {[%emt 0:00:33]} 69. Kc6 {[%emt 0:00:26]} f3 {[%emt 0:00:58]} 70. Kd5 $2 {[%emt 0:01:25]} (70. Rd2 h5 71. Ra2 h4) (70. Rf7 $11 Rxf7 71. a8=Q Rf6+ 72. Kd7) 70... f2 {[%emt 0:00:35]} 71. Rf7 {[%emt 0:03:54]} Rxf7 {[%emt 0:00:35]} 72. a8=Q {[%emt 0:00:11]} f1=Q {[%emt 0:00:10]} 73. Qd8+ {[%emt 0:00:48]} Qf6 {[%emt 0:00:42]} 74. Qg8+ {[%emt 0:00:16]} Rg7 {[%emt 0:00:37]} 75. Qb8 {[%emt 0:00:35]} Qf5+ {[%emt 0:00:40]} 76. Kc6 {[%emt 0:00:29]} Rg6+ {[%emt 0:00:25]} 77. Kb7 {[%emt 0:00:21]} Qb1+ {[%emt 0:00:38]} 78. Ka8 {[%emt 0:00:07]} Ra6+ {[%emt 0:00:48]} (78... Qa2+ $142 79. Qa7 Qd5+ 80. Qb7 Qa5+ 81. Qa6 Qxa6+ 82. Kb8 Qc6 83. Ka7 Rg7+ 84. Kb8 Qe8#) 79. Qa7 {[%emt 0:00:08]} Rxa7+ {[%emt 0:00:14]} 80. Kxa7 {[%emt 0:00:03]} Kf6 {[%emt 0:00:18]} 81. Ka8 {[%emt 0:00:09]} Ke5 {[%emt 0:00:14]} 82. Ka7 {[%emt 0:00:02]} Kd6 {[%emt 0:00:27]} 83. Ka8 {[%emt 0:00:08]} Kc7 {[%emt 0:00:37]} 84. Ka7 {[%emt 0:00:07]} Qb7# {[%emt 0:00:13]} 0-1

[Event "40th BAN National Women Chess-ch 2021"]
[Site "Dhaka"]
[Date "2022.01.07"]
[Round "10.3"]
[White "Nusrat Jahan, Alo"]
[Black "Israt, Jahan Diba"]
[Result "1/2-1/2"]
[ECO "A05"]
[WhiteElo "1766"]
[BlackElo "1630"]
[Annotator "NA RC"]
[PlyCount "153"]
[EventDate "2021.12.29"]
[EventCountry "BAN"]
[SourceTitle "playchess.com"]
[Source "ChessBase"]
[SourceQuality "1"]
[TimeControl "40/5400+30:1800+30"]

1. e4 {[%emt 0:00:04]} c5 {[%emt 0:00:13]} 2. Nf3 {[%emt 0:00:08]} d6 {[%emt 0:00:04]} 3. d3 {[%emt 0:00:07]} Nf6 {[%emt 0:00:07]} 4. g3 {[%emt 0:00:09]} g6 {[%emt 0:00:10]} 5. Bg2 {[%emt 0:00:08]} Bg7 {[%emt 0:00:06]} 6. O-O {[%emt 0:00:12]} O-O {[%emt 0:00:08]} 7. c3 {[%emt 0:00:18]} Nc6 {[%emt 0:04:21]} 8. Re1 {[%emt 1:33:24]} e5 {[%emt 1:29:21]} 9. Be3 {[%emt 0:00:30]} Ng4 {[%emt 0:00:00]} 10. Bg5 {[%emt 0:00:00]} Qb6 {[%emt 0:00:00]} 11. Qc2 {[%emt 0:00:00]} f6 {[%emt 0:00:00]} 12. Be3 {[%emt 0:00:00]} Nxe3 {[%emt 0:00:00]} 13. fxe3 {[%emt 0:00:00]} Bh6 {[%emt 0:00:00]} 14. Kh1 {[%emt 0:00:00]} Be6 {[%emt 0:00:00]} 15. Nbd2 {[%emt 0:03:00]} Ne7 {[%emt 0:00:00]} 16. d4 {[%emt 0:00:00]} Rac8 {[%emt 0:00:00]} 17. d5 {[%emt 0:00:00]} Bg4 {[%emt 0:00:00]} 18. c4 {[%emt 0:00:00]} f5 {[%emt 0:00:00]} 19. h3 {[%emt 0:00:00]} Bxf3 {[%emt 0:00:00]} 20. Bxf3 {[%emt 0:00:00]} fxe4 {[%emt 0:00:00]} 21. Bg4 {[%emt 0:00:00]} Nf5 {[%emt 0:00:00]} 22. Nxe4 {[%emt 0:00:00]} Nxe3 {[%emt 0:00:00]} 23. Be6+ {[%emt 0:00:00]} Kg7 {[%emt 0:00:00]} 24. Qc3 {[%emt 0:00:00]} Rce8 {[%emt 0:00:00]} 25. Rxe3 {[%emt 0:00:00]} Bxe3 {[%emt 0:00:00]} 26. Qxe3 {[%emt 0:00:00]} Qxb2 {[%emt 0:00:00]} 27. Re1 {[%emt 0:00:00]} Qb6 {[%emt 0:00:00]} 28. h4 {[%emt 0:00:00]} Qc7 {[%emt 0:10:00]} 29. h5 {[%emt 0:00:00]} gxh5 {[%emt 0:00:00]} 30. Qg5+ {[%emt 0:00:00]} Kh8 {[%emt 0:00:00]} 31. Qxh5 {[%emt 0:00:00]} Re7 {[%emt 0:00:00]} 32. Qh6 {[%emt 0:00:00]} Rg7 {[%emt 0:02:00]} 33. g4 {[%emt 0:00:59]} Qe7 {[%emt 0:00:00]} 34. Bf5 {[%emt 0:02:30]} a6 {[%emt 0:01:00]} 35. Rf1 {[%emt 0:01:56]} Rg6 {[%emt 0:00:00]} 36. Bxg6 {[%emt 0:02:13]} Rxf1+ {[%emt 0:00:00]} 37. Kg2 {[%emt 0:00:05]} Rf4 {[%emt 0:00:19]} 38. Bf5 {[%emt 0:00:16]} Qg7 {[%emt 0:00:39]} 39. Qe6 {[%emt 0:02:02]} b5 {[%emt 0:00:36]} 40. Nf6 {[%emt 0:00:00]} Qf8 {[%emt 0:00:00]} 41. Nxh7 {[%emt 0:01:50]} Qg8 {[%emt 0:06:18]} 42. Qf6+ {[%emt 0:11:25]} Qg7 {[%emt 0:00:02]} 43. Qd8+ {[%emt 0:01:24]} Qg8 {[%emt 0:00:03]} 44. Qh4 {[%emt 0:00:26]} Rxg4+ {[%emt 0:05:25]} 45. Qxg4 {[%emt 0:00:18]} Qxg4+ {[%emt 0:00:08]} 46. Bxg4 {[%emt 0:00:05]} Kxh7 {[%emt 0:00:05]} 47. cxb5 {[%emt 0:01:22]} axb5 {[%emt 0:00:02]} 48. Kf3 {[%emt 0:01:18]} b4 {[%emt 0:03:26]} 49. Bf5+ {[%emt 0:01:45]} Kg7 {[%emt 0:02:44]} 50. Bd3 {[%emt 0:00:38]} Kf6 {[%emt 0:00:41]} 51. Kg4 {[%emt 0:00:09]} e4 {[%emt 0:01:08]} 52. Bxe4 {[%emt 0:09:16]} Ke5 {[%emt 0:01:30]} 53. Kf3 {[%emt 0:03:46]} c4 {[%emt 0:01:54]} 54. Ke3 {[%emt 0:00:55]} b3 {[%emt 0:07:29]} 55. a4 {[%emt 0:00:14]} b2 {[%emt 0:00:19]} 56. a5 {[%emt 0:01:09]} b1=Q {[%emt 0:00:12]} 57. Bxb1 {[%emt 0:00:06]} Kxd5 {[%emt 0:00:17]} 58. Be4+ {[%emt 0:00:22]} Kc5 {[%emt 0:00:23]} 59. a6 {[%emt 0:00:40]} Kb6 {[%emt 0:00:07]} 60. Bb7 {[%emt 0:00:05]} d5 {[%emt 0:00:08]} 61. Kd4 {[%emt 0:00:53]} Ka7 {[%emt 0:00:19]} 62. Kc3 {[%emt 0:00:11]} Kb6 {[%emt 0:00:59]} 63. Kb4 {[%emt 0:01:07]} Ka7 {[%emt 0:01:01]} 64. Bc8 {[%emt 0:00:42]} Kb6 {[%emt 0:02:54]} 65. Bb7 {[%emt 0:01:49]} Ka7 {[%emt 0:00:08]} 66. Kc3 {[%emt 0:02:11]} Kb6 {[%emt 0:00:20]} 67. Bc8 {[%emt 0:00:36]} Ka7 {[%emt 0:00:42]} 68. Kd4 {[%emt 0:00:34]} Kb6 {[%emt 0:00:20]} 69. Kc3 {[%emt 0:00:56]} Ka7 {[%emt 0:00:42]} 70. Kb4 {[%emt 0:00:39]} Kb6 {[%emt 0:00:17]} 71. Ka4 {[%emt 0:00:06]} d4 {[%emt 0:00:49]} 72. Kb4 {[%emt 0:00:20]} c3 {[%emt 0:00:55]} 73. Kb3 {[%emt 0:00:16]} Ka7 {[%emt 0:00:11]} 74. Kc2 {[%emt 0:00:24]} Kb6 {[%emt 0:00:09]} 75. Kd3 {[%emt 0:00:33]} Ka7 {[%emt 0:00:11]} 76. Bf5 {[%emt 0:00:08]} Kxa6 {[%emt 0:00:10]} 77. Kxd4 {[%emt 0:00:05]} 1/2-1/2

[Event "40th BAN National Women Chess-ch 2021"]
[Site "Dhaka"]
[Date "2022.01.07"]
[Round "10.6"]
[White "Kazi Zarin, Tasnim"]
[Black "Omnia Binta Yusuf, Lubaba"]
[Result "1-0"]
[ECO "B01"]
[WhiteElo "1829"]
[BlackElo "1439"]
[Annotator "NA RC"]
[PlyCount "85"]
[EventDate "2021.12.29"]
[EventCountry "BAN"]
[SourceTitle "playchess.com"]
[Source "ChessBase"]
[SourceQuality "1"]
[TimeControl "40/5400+30:1800+30"]

{[%evp 18,85,80,37,58,36,32767,32767,112,111,100,4,70,22,20,31,32,0,56,17,71,64,52,-31,164,175,163,54,224,133,206,162,200,137,210,128,251,295,225,281,296,219,284,212,268,255,527,327,360,375,688,669,659,726,902,1828,1252,1633,29966,5243,1279,1346,1508,2857,1100,6087,5800,29969,5791,6024]} 1. e4 {[%emt 0:00:04]} d5 {[%emt 0:00:09]} 2. exd5 {[%emt 0:00:26]} Qxd5 {[%emt 0:00:08]} 3. Nc3 {[%emt 0:00:05]} Qa5 {[%emt 0:00:06]} 4. Nf3 {[%emt 0:00:27]} Nf6 {[%emt 0:00:08]} 5. d4 {[%emt 0:00:08]} Bf5 {[%emt 0:00:35]} 6. Bc4 {[%emt 0:03:32]} c6 {[%emt 0:01:44]} 7. Ne5 {[%emt 0:00:38]} e6 {[%emt 0:01:18]} 8. g4 {[%emt 0:01:16]} Be4 {[%emt 0:02:03]} 9. O-O {[%emt 0:02:31]} Bd5 {[%emt 0:12:51]} 10. Nxd5 {[%emt 0:07:52]} ({White should try} 10. Bd3 $16) 10... cxd5 {[%emt 0:05:21]} 11. Bd3 {[%emt 0:06:27]} Bd6 {[%emt 0:04:56]} 12. f4 {[%emt 0:03:53]} Nfd7 {[%emt 0:02:00]} 13. Qe2 {[%emt 0:05:35]} Nc6 {[%emt 0:06:01]} 14. Bb5 {[%emt 0:14:39]} (14. c3 $16) 14... Qb6 {[%emt 0:12:19]} (14... a6 $1 $11 15. Bxc6 bxc6) 15. Nxd7 {[%emt 0:11:14]} ({White should try} 15. Be3 $16) 15... Kxd7 {[%emt 0:00:09]} 16. c3 {[%emt 0:01:41]} a6 {[%emt 0:04:00]} 17. Ba4 {[%emt 0:01:53]} Qc7 {[%emt 0:03:35]} (17... Kc7 $11) 18. f5 {[%emt 0:05:19]} (18. Be3 $14) 18... e5 {[%emt 0:01:57]} ({But not} 18... b5 19. Bc2 $16 (19. fxe6+ fxe6 20. Bc2 Rhf8 $16)) (18... Rae8 $14) 19. dxe5 {[%emt 0:00:49]} Bxe5 {[%emt 0:02:56]} 20. Rd1 {[%emt 0:02:53]} ({Better is} 20. Bb3 $16) 20... Rhe8 $2 {[%emt 0:04:09]} (20... Rae8 $1 $15 {stays ahead.} 21. Qf2 (21. Rxd5+ Kc8 $11) 21... Kc8) 21. Rxd5+ {[%emt 0:01:28]} Kc8 {[%emt 0:00:30]} 22. Qf2 {[%emt 0:04:29]} (22. Kg2 $18) 22... b5 $2 {[%emt 0:01:13] [#]} ({Better is} 22... Bxh2+ $1 $14 23. Kh1 (23. Qxh2 $2 Re1+ 24. Kf2 Qxh2+ $19) 23... Qg3 24. Qxg3 Bxg3) 23. Bb3 {[%emt 0:01:59]} (23. Bd1 $1 $18 {and the rest is easy.}) 23... Kb7 {[%emt 0:03:52]} (23... Bxh2+ $142 24. Kh1 (24. Qxh2 $2 Re1+ 25. Kf2 Qxh2+ $19) 24... Qg3 25. Qxg3 Bxg3) 24. Bg5 {[%emt 0:02:31]} f6 {[%emt 0:02:54]} 25. Rad1 {[%emt 0:01:52]} Re7 {[%emt 0:06:39]} (25... fxg5 $2 26. Rd7) (25... Rad8 $16) 26. Be3 {[%emt 0:02:19]} Bxh2+ {[%emt 0:02:30]} (26... Rae8 $16 {is a better defense.} 27. R5d3 (27. Bc5 Bxh2+ 28. Kh1 Re2 $16) 27... Bxh2+ 28. Kh1 Ne5) 27. Qxh2 {[%emt 0:03:05]} Qxh2+ {[%emt 0:00:18]} 28. Kxh2 {[%emt 0:00:00]} Rxe3 {[%emt 0:00:19]} 29. Rd7+ {[%emt 0:00:09]} Kb6 {[%emt 0:00:17]} 30. Rxg7 {[%emt 0:07:08]} Rh8 {[%emt 0:05:02]} 31. Rd6 {[%emt 0:01:30]} h5 $2 {[%emt 0:00:47]} (31... Kc5 32. Rxf6 Rd8) 32. Rxf6 {[%emt 0:02:30]} hxg4+ {[%emt 0:00:32]} 33. Kg2 {[%emt 0:01:36]} Rd8 $2 {[%emt 0:02:51] [#]} (33... Rc8 34. Rxg4 Kc5) 34. Rgg6 $1 {[%emt 0:01:18]} Rd2+ {[%emt 0:00:26]} 35. Kf1 {[%emt 0:00:03]} g3 {[%emt 0:04:45]} 36. Rxc6+ {[%emt 0:00:09]} Kb7 {[%emt 0:00:37]} 37. Rce6 {[%emt 0:02:21]} g2+ {[%emt 0:07:46]} 38. Rxg2 {[%emt 0:00:14]} Rf3+ {[%emt 0:00:44]} 39. Ke1 {[%emt 0:01:34]} Rxg2 {[%emt 0:00:53]} 40. Bd5+ {[%emt 0:00:00]} Kc7 {[%emt 0:00:00]} 41. Bxf3 {[%emt 0:00:05]} Rg5 {[%emt 0:01:53]} 42. f6 {[%emt 0:02:33]} Kd7 $18 {[%emt 0:02:21]} 43. Rxa6 {[%emt 0:00:14]} 1-0